bitfinex-derivatives/quotes_ETHF0:USTF0_20241105
["timestamp","ask_amount","ask_price","bid_price","bid_amount"]
[1730819317319,40.8,2453.5,2452.9,3.2078]
[1730819317510,0.40774,2453.2,2452.9,3.2078]
[1730819317816,3.2078,2453.1,2452.5,3.2078]
[1730819318009,3.2078,2452.6,2451.9,3.2078]
[1730819318214,0.40791,2452.2,2451.9,3.2078]
[1730819318413,3.2078,2452.6,2451.9,3.2078]
[1730819318614,40.8,2452.5,2452.2,3.2078]
[1730819318812,0.4078,2452.8,2452.3,0.40787]
[1730819319022,0.40781,2452.7,2452.5,3.2078]
[1730819319320,1.01879,2454.5,2452.6,6.60574463]
[1730819319614,0.40763,2453.8,2453.5,3.2078]
[1730819319818,3.2078,2453.9,2453.5,3.2078]
[1730819320022,3.2078,2453.9,2453.2,6.60574463]
[1730819320023,0.40768,2453.5,2453.2,3.2078]
[1730819320218,3.2078,2454.2,2453.2,3.2078]
[1730819320410,0.40758,2454.1,2453.5,3.2078]
[1730819320611,3.2078,2453.8,2453.2,3.2078]
[1730819320821,0.40769,2453.5,2453.2,3.2078]
[1730819321322,0.40765,2453.7,2453.2,3.2078]
[1730819321523,0.40767,2453.6,2453.2,3.2078]
[1730819321719,3.2078,2454.1,2453.2,3.2078]
[1730819321922,40.8,2454.0,2453.2,3.2078]
[1730819322121,0.40764,2453.8,2453.3,0.4077]
[1730819322622,40.8,2454.0,2453.2,3.2078]
[1730819323125,0.40763,2453.9,2453.3,0.4077]
[1730819323318,3.2078,2454.1,2453.5,0.40767]
[1730819323516,3.2078,2454.1,2453.5,3.2078]
[1730819323719,3.2078,2453.8,2452.8,9.81354463]
[1730819324012,1.42631,2454.5,2453.5,0.40767]
[1730819324222,3.2078,2454.9,2453.7,3.2078]
[1730819324422,0.40758,2454.1,2453.7,3.2078]
[1730819324625,3.2078,2454.6,2454.0,3.2078]
[1730819324823,0.40757,2454.2,2454.0,3.2078]
[1730819325130,0.40758,2454.1,2454.0,3.2078]
[1730819325628,3.2078,2454.6,2454.0,3.2078]
[1730819325822,3.2078,2454.8,2454.0,3.2078]
[1730819326322,0.40737,2455.4,2454.9,0.40743]
[1730819326516,0.40739,2455.3,2455.1,3.2078]
[1730819326718,3.2078,2455.5,2454.8,9.81354463]
[1730819326915,1.04322,2456.1,2454.8,9.81354463]
[1730819326916,0.02508,2456.1,2455.1,3.2078]
[1730819327117,0.40729,2455.9,2455.4,3.2078]
[1730819327318,0.4073,2455.8,2455.4,3.2078]
[1730819327825,0.40729,2455.9,2455.4,3.61516]
[1730819328024,0.02508,2456.1,2455.6,0.40732]
[1730819328025,0.43234,2456.1,2455.6,0.40732]
[1730819328218,0.02508,2456.1,2455.6,4.40078863]
[1730819328418,0.02508,2456.1,2456.0,7.60858863]
[1730819328617,0.40727,2456.0,2455.7,4.40078863]
[1730819328824,0.02508,2456.1,2455.7,7.60858863]
[1730819329128,0.43233,2456.1,2455.7,7.60858863]
[1730819329326,0.02508,2456.1,2455.7,7.60858863]
[1730819329521,0.4073,2455.8,2455.3,7.60858863]
[1730819329823,0.40731,2455.8,2455.3,7.60858863]
[1730819330627,0.40736,2455.4,2454.9,4.40078863]
[1730819330829,3.2078,2455.9,2454.9,7.60858863]
[1730819331027,0.40736,2455.5,2455.3,3.2078]
[1730819331429,0.40734,2455.6,2455.3,7.60858863]
[1730819331633,3.61509,2455.9,2455.3,7.60858863]
[1730819331837,3.2078,2455.9,2455.3,7.60858863]
[1730819332338,0.40727,2456.0,2455.7,4.40078863]
[1730819332627,0.43234,2456.1,2455.9,3.2078]
[1730819332832,0.4073,2455.8,2455.7,4.40078863]
[1730819333028,3.2078,2456.2,2455.6,3.2078]
[1730819333222,0.4072,2456.4,2455.9,3.2078]
[1730819333426,0.40728,2455.9,2455.5,3.2078]
[1730819333628,3.2078,2456.0,2455.4,3.2078]
[1730819333829,1.58481777,2457.4,2455.9,3.2078]
[1730819334028,0.40721,2456.3,2456.2,4.40078863]
[1730819334225,0.40721,2456.3,2455.9,3.2078]
[1730819334226,4.0712,2456.3,2455.9,7.60858863]
[1730819334431,0.40722,2456.3,2455.9,7.60858863]
[1730819334731,0.40722,2456.3,2456.2,3.2078]
[1730819334934,0.40721,2456.3,2456.2,3.2078]
[1730819335129,1.01776,2457.0,2456.2,3.2078]
[1730819335130,3.2078,2456.9,2456.2,3.2078]
[1730819335430,3.2078,2456.9,2456.2,7.60858863]
[1730819335830,3.2078,2456.6,2456.2,7.60858863]
[1730819336030,0.40721,2456.3,2456.2,4.40078863]
[1730819338133,0.40721,2456.3,2454.9,1.01861]
[1730819338134,0.40726,2456.0,2455.9,7.60858863]
[1730819338329,3.2078,2456.6,2455.8,3.2078]
[1730819338525,0.40731,2455.7,2455.5,4.40078863]
[1730819338733,0.61031,2456.4,2455.5,4.40078863]
[1730819339037,0.4073,2455.8,2455.7,3.2078]
[1730819339233,41.2073,2455.8,2455.7,3.2078]
[1730819339625,40.8,2455.8,2455.7,3.2078]
[1730819339825,40.8,2455.8,2455.7,7.2798]
[1730819340032,1.01783,2456.9,2455.7,7.2798]
[1730819340033,3.2078,2456.9,2455.7,7.2798]
[1730819340236,1.58481777,2458.0,2455.7,7.2798]
[1730819340237,3.2078,2457.9,2456.8,3.2078]
[1730819340539,3.2078,2457.3,2456.8,4.40078863]
[1730819340742,0.40706,2457.3,2457.1,3.2078]
[1730819340933,0.42947,2457.2,2457.1,3.2078]
[1730819341529,1.42479,2457.1,2456.4,4.40078863]
[1730819341733,0.02241,2457.2,2456.4,4.40078863]
[1730819341938,0.02241,2457.2,2455.8,12.832]
[1730819341939,0.02241,2457.2,2456.8,4.40078863]
[1730819342135,0.40692,2458.1,2457.2,0.40706]
[1730819342435,1.22205,2458.8,2457.2,0.40706]
[1730819342436,3.2078,2457.9,2457.3,4.40078863]
[1730819342644,3.2078,2457.9,2456.2,14.20455561]
[1730819342645,3.2078,2457.5,2456.9,7.60858863]
[1730819342843,0.40716,2456.6,2456.5,4.40078863]
[1730819343138,4.0704,2456.6,2456.1,4.40078863]
[1730819343334,0.4072,2456.4,2456.1,4.40078863]
[1730819343536,3.2078,2456.8,2455.8,7.60858863]
[1730819343537,4.0712,2456.3,2455.8,7.60858863]
[1730819343739,1.01776,2457.0,2455.8,3.2078]
[1730819343933,0.40723,2456.2,2456.1,7.60858863]
[1730819344133,3.2078,2456.7,2456.1,7.60858863]
[1730819344337,3.2078,2456.7,2455.1,10.186]
[1730819344338,0.40726,2456.1,2455.8,7.60858863]
[1730819344562,3.4128,2457.7,2456.1,4.40078863]
[1730819344739,1.42479,2457.1,2456.3,3.2078]
[1730819345043,0.4072,2456.4,2456.3,3.2078]
[1730819345235,3.2078,2457.0,2456.2,3.2078]
[1730819345441,5.08808,2457.2,2456.3,3.2078]
[1730819345442,3.2078,2456.9,2456.3,3.2078]
[1730819345647,0.40721,2456.4,2456.3,3.2078]
[1730819346148,0.40728,2455.9,2455.8,7.60858863]
[1730819346339,1.01804,2456.3,2455.8,3.2078]
[1730819346550,0.40728,2455.9,2455.8,3.2078]
[1730819346842,4.22584,2456.3,2455.1,4.40078863]
[1730819346843,4.0712,2456.2,2455.1,4.40078863]
[1730819347051,0.40738,2455.4,2455.1,4.40078863]
[1730819347236,0.4074,2455.2,2455.1,4.40078863]
[1730819347441,0.40738,2455.3,2455.1,4.40078863]
[1730819347636,1.01818,2456.0,2455.2,3.2078]
[1730819347951,0.40737,2455.4,2455.1,4.40078863]
[1730819348252,0.40737,2455.4,2454.9,0.40744]
[1730819348253,4.0728,2455.4,2454.9,3.2078]
[1730819348449,0.40743,2455.0,2454.7,4.40078863]
[1730819348744,0.40746,2454.8,2454.7,4.40078863]
[1730819348945,41.20745,2454.9,2454.7,4.40078863]
[1730819349134,40.8,2454.9,2454.7,4.40078863]
[1730819349338,0.40746,2454.8,2454.7,4.40078863]
[1730819349739,0.40746,2454.8,2454.6,3.2078]
[1730819349740,0.40748,2454.7,2454.6,3.2078]
[1730819350542,4.45072452,2456.4,2454.6,3.2078]
[1730819350543,3.2078,2456.2,2454.6,7.2814]
[1730819350741,4.22578,2456.5,2455.7,4.40078863]
[1730819350949,0.40728,2455.9,2455.8,3.2078]
[1730819351142,3.2078,2456.3,2455.8,3.2078]
[1730819351344,0.40728,2455.9,2455.8,3.2078]
[1730819351641,0.40728,2455.9,2455.4,4.40078863]
[1730819351642,0.40731,2455.7,2455.4,4.40078863]
[1730819351845,0.4073,2455.8,2455.6,3.2078]
[1730819352045,3.2078,2456.3,2455.6,3.2078]
[1730819352249,4.072,2456.2,2455.6,3.2078]
[1730819352445,0.40732,2455.7,2455.6,3.2078]
[1730819352638,0.40735,2455.5,2455.2,3.2078]
[1730819352952,3.2078,2456.1,2455.2,3.2078]
[1730819353139,0.40733,2455.6,2455.5,3.2078]
[1730819353551,4.48013,2455.6,2455.5,3.2078]
[1730819353745,4.0728,2455.6,2455.2,3.2078]
[1730819353949,0.40739,2455.3,2455.2,3.2078]
[1730819354439,4.48019,2455.3,2455.2,3.2078]
[1730819355742,3.2078,2456.6,2455.2,3.2078]
[1730819356050,0.40723,2456.2,2456.1,3.2078]
[1730819357146,1.01784,2456.8,2455.7,4.80808863]
[1730819357147,0.40728,2455.9,2455.8,3.2078]
[1730819357348,0.40727,2456.0,2455.8,7.2806]
[1730819357545,40.8,2456.0,2455.7,4.40078863]
[1730819357752,0.40734,2455.6,2455.4,3.2078]
[1730819358050,0.40735,2455.5,2455.4,3.2078]
[1730819358851,1.01803,2456.4,2455.4,3.2078]
[1730819358852,3.2078,2457.0,2455.4,3.2078]
[1730819359051,0.40723,2456.2,2456.1,3.2078]
[1730819359252,0.40723,2456.2,2456.1,7.60858863]
[1730819359546,3.2078,2456.4,2455.8,7.60858863]
[1730819359759,0.40727,2456.0,2455.9,4.0728]
[1730819360046,3.2078,2456.4,2455.8,3.2078]
[1730819360254,0.40733,2455.6,2455.5,3.2078]
[1730819360445,0.40733,2455.6,2455.5,7.2806]
[1730819360954,0.40733,2455.6,2455.5,3.2078]
[1730819361156,4.0728,2455.6,2455.1,4.40078863]
[1730819361452,0.40744,2455.0,2454.9,4.0728]
[1730819361643,3.2078,2455.7,2454.9,4.0728]
[1730819361843,3.2078,2455.7,2454.7,4.40078863]
[1730819361844,0.4074,2455.2,2455.1,11.68138863]
[1730819362040,40.8,2455.6,2455.5,4.0728]
[1730819362246,41.20733,2455.6,2455.5,4.0728]
[1730819364358,1.58481777,2456.5,2455.5,7.2806]
[1730819364653,0.40718,2456.5,2456.4,11.68138863]
[1730819364857,40.8,2456.8,2456.4,11.68138863]
[1730819365049,0.42418,2456.9,2456.8,4.0728]
[1730819365247,0.42418,2456.9,2456.8,8.47358863]
[1730819365248,0.01706,2456.9,2456.8,8.47358863]
[1730819365458,0.42417,2456.9,2456.8,8.47358863]
[1730819365754,0.01706,2456.9,2456.8,8.47358863]
[1730819366053,0.01706,2456.9,2456.8,4.0728]
[1730819366458,0.42417,2456.9,2456.8,7.2806]
[1730819366655,0.40716,2456.7,2456.5,7.60858863]
[1730819366850,0.40698,2457.8,2456.8,7.2782]
[1730819367059,2.64375938,2458.7,2456.8,7.2782]
[1730819367060,0.40696,2457.9,2457.7,11.68138863]
[1730819367251,0.4069,2458.2,2458.1,4.0728]
[1730819367456,3.2078,2458.6,2458.1,8.47358863]
[1730819367653,4.22489,2458.6,2458.2,4.0728]
[1730819367867,0.4069,2458.2,2458.1,5.0898]
[1730819368252,41.2069,2458.2,2458.1,5.0898]
[1730819369056,41.2069,2458.2,2458.1,1.017]
[1730819369265,3.2078,2458.7,2458.1,1.017]
[1730819369462,3.37251126,2460.0,2459.2,8.1408]
[1730819369463,3.2078,2459.5,2459.2,8.1408]
[1730819369655,0.40671,2459.4,2459.2,8.1408]
[1730819369958,40.8,2459.3,2459.2,8.1408]
[1730819370263,40.8,2459.3,2459.2,11.3486]
[1730819370558,0.40677,2459.0,2458.7,4.40078863]
[1730819370758,0.40677,2459.0,2458.1,1.017]
[1730819370759,0.40683,2458.6,2458.3,4.40078863]
[1730819370957,3.2078,2458.7,2458.5,8.1408]
[1730819371148,3.2078,2458.7,2458.4,8.1408]
[1730819371357,0.40687,2458.4,2458.3,8.1408]
[1730819371653,0.4069,2458.2,2458.1,1.017]
[1730819372070,41.2069,2458.2,2458.1,1.017]
[1730819374858,4.22455,2459.5,2458.1,4.2248]
[1730819375054,0.40673,2459.2,2459.1,12.54158863]
[1730819375258,0.40673,2459.2,2458.7,4.40078863]
[1730819375259,3.2078,2459.2,2458.7,4.40078863]
[1730819375565,0.40685,2458.5,2458.4,7.60858863]
[1730819375763,0.40685,2458.5,2458.4,4.40078863]
[1730819376063,0.4069,2458.2,2458.1,1.017]
[1730819376456,0.4069,2458.2,2458.1,9.1578]
[1730819377166,0.4069,2458.2,2458.1,1.017]
[1730819378254,0.4069,2458.2,2457.6,4.40078863]
[1730819378255,0.40698,2457.7,2457.6,4.40078863]
[1730819378760,0.40698,2457.7,2457.6,12.54158863]
[1730819379166,0.40698,2457.7,2457.6,8.1408]
[1730819379467,1.01723,2458.3,2457.6,8.1408]
[1730819379468,0.40672,2459.3,2458.1,3.61471]
[1730819379766,2.9007,2460.0,2459.2,7.60858863]
[1730819379767,0.2,2460.0,2459.2,7.60858863]
[1730819379977,0.2,2460.0,2459.7,3.2078]
[1730819380562,0.2,2460.0,2459.9,4.40078863]
[1730819381067,0.2,2460.0,2459.7,3.2078]
[1730819381456,4.0656,2459.9,2459.7,3.2078]
[1730819381657,0.40663,2459.8,2459.6,3.2078]
[1730819382060,4.0656,2459.7,2459.6,3.2078]
[1730819382254,4.47222,2459.9,2459.6,3.2078]
[1730819382461,0.40665,2459.7,2459.5,3.2078]
[1730819382865,0.2,2460.0,2459.6,8.46638863]
[1730819383162,0.2,2460.0,2459.9,3.2078]
[1730819383362,0.2,2460.0,2459.9,7.2726]
[1730819384273,40.8,2460.8,2459.9,7.67922]
[1730819384469,40.8,2460.8,2460.6,3.2078]
[1730819385064,0.4165799,2461.4,2460.6,3.2078]
[1730819385065,0.0102099,2461.4,2460.6,3.2078]
[1730819385264,0.0102099,2461.4,2459.9,10.5824]
[1730819385265,0.0102099,2461.4,2461.3,7.60858863]
[1730819385562,0.0102099,2461.4,2461.3,3.2078]
[1730819385563,40.8102099,2461.4,2461.3,3.2078]
[1730819385765,40.8102099,2461.4,2461.0,3.2078]
[1730819385959,0.40642,2461.2,2460.7,3.2078]
[1730819386162,0.40642,2461.1,2460.7,3.2078]
[1730819386363,3.2078,2461.3,2460.7,3.2078]
[1730819386364,0.40645,2461.0,2460.7,3.2078]
[1730819386767,0.40645,2461.0,2460.7,3.5329]
[1730819387084,0.40643,2461.1,2460.7,3.5329]
[1730819387473,40.8102099,2461.4,2461.0,3.2078]
[1730819387665,0.053,2464.8,2461.4,0.40637]
[1730819387666,0.40625,2462.1,2461.4,0.40637]
[1730819387967,3.2078,2462.6,2460.7,0.3251]
[1730819387968,0.40623,2462.3,2461.7,3.2078]
[1730819388274,3.2078,2462.6,2461.7,3.61411]
[1730819388275,0.4062,2462.4,2461.7,3.61411]
[1730819388472,40.8,2462.5,2461.7,3.2078]
[1730819388970,0.40626,2462.1,2461.7,3.2078]
[1730819389170,40.8,2462.5,2461.7,3.2078]
[1730819389171,0.40628,2462.0,2461.7,3.2078]
[1730819389671,40.8,2462.5,2461.7,3.2078]
[1730819389864,0.40634,2461.6,2461.4,3.2078]
[1730819390067,0.40635,2461.6,2461.1,3.2078]
[1730819390264,0.40632,2461.7,2461.1,3.2078]
[1730819390471,0.47511,2463.0,2462.1,0.40624]
[1730819390684,3.2078,2463.4,2462.6,4.40078863]
[1730819390889,3.61389,2463.1,2462.1,4.40078863]
[1730819391179,2.6901,2463.9,2462.1,4.40078863]
[1730819391180,0.40612,2463.0,2462.1,8.01483863]
[1730819391369,3.2078,2463.4,2462.3,3.2078]
[1730819391564,3.2078,2463.4,2462.8,3.2078]
[1730819391565,0.40606,2463.3,2462.8,3.2078]
[1730819391763,0.4061,2463.1,2462.8,3.2078]
[1730819391973,2.8017,2463.4,2462.8,3.2078]
[1730819392782,3.2078,2463.1,2462.5,7.60858863]
[1730819393078,3.2078,2463.1,2462.5,3.2078]
[1730819393271,40.8,2463.0,2462.5,3.2078]
[1730819393475,3.22551126,2466.8,2461.4,10.17]
[1730819393476,3.2078,2463.9,2463.2,0.40607]
[1730819393673,3.2078,2464.7,2463.8,4.40078863]
[1730819393874,2.7023,2465.0,2464.3,3.2078]
[1730819393875,40.8,2464.6,2464.3,3.2078]
[1730819394068,0.40592,2464.1,2464.0,3.2078]
[1730819394591,3.2078,2464.4,2464.0,3.2078]
[1730819394971,0.40592,2464.2,2464.0,3.2078]
[1730819395174,40.8,2464.6,2464.0,3.2078]
[1730819395475,3.2078,2464.1,2463.4,7.60858863]
[1730819395668,4.0576,2464.5,2463.1,3.2078]
[1730819395669,3.2078,2463.7,2463.1,3.2078]
[1730819396068,0.40614,2462.8,2462.7,3.2078]
[1730819396267,0.40614,2462.8,2462.1,0.40625]
[1730819396268,0.40622,2462.4,2462.2,4.40078863]
[1730819396474,3.2078,2463.0,2462.1,3.2078]
[1730819396668,41.20622,2462.3,2462.1,3.2078]
[1730819396865,40.8,2462.3,2462.1,3.2078]
[1730819397478,40.8,2462.3,2462.2,4.0616]
[1730819397679,40.8,2462.3,2462.2,8.46238863]
[1730819398868,40.8,2462.3,2462.1,3.2078]
[1730819399067,0.40624,2462.2,2462.1,3.2078]
[1730819399573,40.8,2462.3,2461.8,3.2078]
[1730819399768,3.2078,2463.7,2462.2,4.40078863]
[1730819399975,0.40607,2463.2,2463.1,3.2078]
[1730819400173,0.40611,2463.0,2462.9,3.2078]
[1730819401079,40.8,2463.2,2462.9,7.2678]
[1730819401375,0.069,2463.2,2463.1,0.40609]
[1730819401581,0.40599,2463.8,2463.1,4.06]
[1730819401877,0.40597,2463.8,2463.7,3.2078]
[1730819402097,0.40597,2463.8,2463.1,0.40609]
[1730819402098,0.40607,2463.2,2463.1,3.2078]
[1730819402269,0.47507,2463.2,2463.1,3.2078]
[1730819402467,0.069,2463.2,2463.1,3.2078]
[1730819402669,0.069,2463.2,2463.1,7.2678]
[1730819402869,0.069,2463.3,2463.1,7.2678]
[1730819403075,0.069,2463.4,2463.2,8.46078863]
[1730819403276,1.01461,2464.7,2463.2,8.46078863]
[1730819403466,2.5635,2465.1,2463.8,3.2078]
[1730819403467,3.2078,2464.3,2463.8,3.2078]
[1730819403667,0.40596,2463.9,2463.8,3.2078]
[1730819404479,0.40585,2464.6,2463.8,7.2662]
[1730819404480,3.2078,2464.6,2463.8,7.2662]
[1730819404681,3.2078,2464.0,2463.4,3.2078]
[1730819404876,0.4061,2463.1,2463.0,3.2078]
[1730819405377,4.06,2463.1,2462.7,3.2078]
[1730819405582,0.40614,2462.8,2462.0,3.2078]
[1730819405778,3.2078,2462.3,2461.7,3.2078]
[1730819405997,2.8021,2462.3,2461.7,3.2078]
[1730819406172,0.4063,2461.8,2461.7,3.2078]
[1730819406688,0.20457059,2463.7,2461.7,8.58329494]
[1730819406983,0.40605,2463.4,2463.2,3.2078]
[1730819407178,41.20602,2463.6,2463.2,3.2078]
[1730819407380,0.61057059,2463.7,2463.5,3.2078]
[1730819407683,4.22252,2464.4,2463.5,3.2078]
[1730819407873,0.40591,2464.2,2463.8,3.2078]
[1730819408078,40.8,2464.3,2463.8,3.2078]
[1730819408280,0.40596,2463.9,2463.8,3.2078]
[1730819408778,4.0584,2463.9,2463.5,0.043]
[1730819408979,0.40601,2463.6,2463.5,0.043]
[1730819409183,4.0592,2463.9,2463.2,3.2078]
[1730819409375,3.2078,2463.6,2463.0,3.2078]
[1730819409576,0.4061,2463.1,2463.0,3.2078]
[1730819409781,40.8,2463.1,2463.0,3.2078]
[1730819409976,48.0678,2463.1,2462.4,3.2078]
[1730819410176,0.40619,2462.5,2462.4,3.2078]
[1730819410377,0.40623,2462.3,2462.1,4.40078863]
[1730819410579,40.8,2463.1,2462.2,4.0616]
[1730819410774,3.2078,2463.8,2463.0,3.2078]
[1730819410973,0.40609,2463.1,2463.0,3.2078]
[1730819411577,44.0078,2463.8,2463.0,3.2078]
[1730819411784,0.40609,2463.1,2463.0,3.2078]
[1730819412183,0.40611,2463.0,2462.8,3.2078]
[1730819412392,3.2078,2463.0,2462.4,4.40078863]
[1730819412687,0.4062,2462.5,2462.2,3.2078]
[1730819413185,1.01527,2463.0,2462.2,3.2078]
[1730819413386,0.40621,2462.4,2462.2,3.2078]
[1730819413683,0.40619,2462.6,2462.2,3.2078]
[1730819413885,40.8,2462.9,2462.5,3.2078]
[1730819414089,3.2078,2462.7,2461.8,3.2078]
[1730819414388,0.40627,2462.0,2461.8,3.2078]
[1730819414684,0.4062,2462.4,2461.8,3.2078]
[1730819414878,40.8,2462.9,2461.0,11.1751]
[1730819414879,40.8,2462.9,2462.1,3.2078]
[1730819415077,3.2078,2462.5,2462.0,4.40078863]
[1730819415280,0.40625,2462.1,2462.0,4.40078863]
[1730819415680,3.2078,2462.5,2461.9,3.2078]
[1730819415888,0.40627,2462.0,2461.9,3.2078]
[1730819416280,3.2078,2462.5,2461.9,3.2078]
[1730819416488,0.40627,2462.1,2461.9,3.2078]
[1730819416681,3.2078,2462.5,2461.9,3.2078]
[1730819416885,3.2078,2462.5,2462.1,4.40078863]
[1730819417196,0.40627,2462.0,2461.9,3.2078]
[1730819417388,1.01557,2462.3,2461.9,3.2078]
[1730819417590,1.01557,2462.3,2461.5,3.2078]
[1730819417591,3.2078,2462.2,2461.5,3.2078]
[1730819417890,42.83065,2462.9,2461.5,3.2078]
[1730819417891,1.01568,2462.0,2461.5,3.2078]
[1730819418092,0.40639,2461.3,2461.2,3.22893]
[1730819418786,0.40636,2461.5,2461.2,3.22893]
[1730819418986,1.01568,2462.0,2461.2,7.62971863]
[1730819419193,0.40639,2461.3,2461.2,7.62971863]
[1730819419386,0.40639,2461.3,2461.2,3.22893]
[1730819419579,0.40639,2461.3,2461.2,3.55393]
[1730819419983,4.46959,2461.3,2461.2,0.34613]
[1730819420691,0.40639,2461.3,2461.2,0.34613]
[1730819421087,40.8,2461.6,2461.2,8.81011863]
[1730819421388,0.40637,2461.4,2461.3,3.2078]
[1730819421784,3.2078,2461.9,2461.3,11.67178863]
[1730819421984,3.82193,2462.2,2461.6,3.2078]
[1730819421985,1.01568,2462.0,2461.6,3.2078]
[1730819422184,0.40631,2461.8,2461.6,3.2078]
[1730819422396,4.22333,2462.4,2461.7,4.0624]
[1730819422585,0.40625,2462.1,2462.0,3.2078]
[1730819422894,0.40629,2461.9,2461.8,3.2078]
[1730819423287,0.40629,2462.0,2461.8,7.2694]
[1730819423593,0.40629,2461.9,2461.8,3.2078]
[1730819423897,40.8,2462.3,2461.7,3.2078]
[1730819423898,0.4063,2461.8,2461.7,3.2078]
[1730819424594,0.40637,2461.4,2461.3,3.2078]
[1730819424893,5.0782,2461.8,2461.2,0.34613]
[1730819424894,0.40639,2461.3,2461.2,0.34613]
[1730819427090,0.40637,2461.5,2461.2,4.40933]
[1730819427287,0.40633,2461.7,2461.4,3.2078]
[1730819427491,1.01567,2462.1,2461.4,3.2078]
[1730819427698,1.01568,2462.0,2461.7,3.2078]
[1730819427900,0.40639,2461.3,2461.2,4.74691863]
[1730819428103,1.01568,2462.0,2461.2,4.74691863]
[1730819428392,0.4063,2461.9,2461.6,0.40632]
[1730819428597,0.40632,2461.7,2461.6,4.40078863]
[1730819428796,46.6735,2462.3,2461.6,4.40078863]
[1730819429095,1.01567,2462.1,2461.5,3.2078]
[1730819429295,1.0156,2462.2,2461.5,3.2078]
[1730819429595,0.40629,2461.9,2461.8,3.2078]
[1730819429799,1.01572,2462.0,2461.5,3.2078]
[1730819429996,0.40634,2461.6,2461.5,3.2078]
[1730819430192,47.68909,2462.3,2461.5,3.2078]
[1730819430393,0.40632,2461.7,2461.5,3.61414]
[1730819430592,46.6735,2462.3,2461.5,3.2078]
[1730819430900,6.62293521,2463.4,2461.2,0.34613]
[1730819430901,0.40624,2462.2,2462.1,3.2078]
[1730819431407,40.8,2462.6,2462.1,7.2694]
[1730819431699,0.40621,2462.4,2462.1,3.2078]
[1730819431903,40.8,2462.6,2462.1,3.2078]
[1730819432091,3.66414,2463.1,2462.5,3.2078]
[1730819432092,0.40617,2462.7,2462.5,3.2078]
[1730819432290,3.66414,2463.1,2462.6,4.40078863]
[1730819432291,2.6489,2463.1,2462.6,4.40078863]
[1730819432599,0.40613,2462.9,2462.6,4.40078863]
[1730819432794,0.40611,2463.0,2462.6,4.80695863]
[1730819433099,0.4061,2463.1,2462.7,0.40615]
[1730819433301,1.015,2463.7,2462.8,3.61393]
[1730819433601,0.40606,2463.3,2463.2,3.2078]
[1730819433995,8.5516,2464.0,2463.2,7.2678]
[1730819434202,8.5516,2464.0,2463.0,4.40078863]
[1730819434203,0.40598,2463.8,2463.7,3.2078]
[1730819434389,4.22255,2464.3,2463.7,3.2078]
[1730819434390,3.2078,2464.3,2463.7,3.2078]
[1730819434590,0.40597,2463.8,2463.7,3.5325]
[1730819434794,0.40596,2463.9,2463.7,3.5325]
[1730819435092,40.8,2464.2,2463.7,3.5325]
[1730819435093,40.8,2464.2,2463.8,8.45918863]
[1730819435289,3.2078,2464.3,2463.7,3.5325]
[1730819435493,0.40597,2463.8,2463.7,3.5325]
[1730819435702,41.20597,2463.8,2463.7,0.3247]
[1730819436100,0.40597,2463.8,2463.7,0.3247]
[1730819436801,0.40597,2463.9,2463.7,8.78468863]
[1730819437003,0.40597,2463.9,2463.8,3.2078]
[1730819437198,1.01469,2464.4,2463.7,4.72548863]
[1730819437393,0.40597,2463.8,2463.7,0.3247]
[1730819437597,0.40597,2463.8,2463.7,4.72548863]
[1730819438307,0.40595,2464.0,2463.7,9.19067863]
[1730819438598,0.4059,2464.3,2463.9,3.2078]
[1730819438907,0.4059,2464.3,2464.2,3.2078]
[1730819439198,2.5683,2464.8,2464.2,3.2078]
[1730819439403,0.40583,2464.7,2464.2,3.2078]
[1730819439597,3.2078,2465.4,2464.4,4.40078863]
[1730819439797,3.2078,2465.4,2464.8,3.2078]
[1730819439798,0.40579,2464.9,2464.8,3.2078]
[1730819440001,0.40586,2464.6,2464.5,3.2078]
[1730819440210,0.40583,2464.7,2464.5,7.2654]
[1730819440398,0.40583,2464.7,2464.5,3.2078]
[1730819440599,1.01432,2465.3,2464.6,4.0576]
[1730819440795,0.40579,2464.9,2464.8,3.2078]
[1730819441196,4.0568,2464.9,2464.1,7.60858863]
[1730819441507,0.40597,2463.8,2463.7,7.93328863]
[1730819441907,0.40597,2463.8,2463.7,3.5325]
[1730819442396,0.40596,2463.9,2463.7,11.99248863]
[1730819442598,0.40597,2463.8,2463.7,7.93328863]
[1730819443108,40.8,2464.2,2463.7,11.99248863]
[1730819443303,40.8,2464.2,2464.1,4.40078863]
[1730819443606,1.01453,2464.8,2464.1,4.40078863]
[1730819443807,0.40586,2464.5,2464.4,3.2078]
[1730819444504,0.40591,2464.2,2464.1,7.60858863]
[1730819445005,0.40591,2464.2,2464.1,3.2078]
[1730819445306,0.40589,2464.3,2464.1,11.66698863]
[1730819445517,0.40586,2464.5,2464.4,3.2078]
[1730819445808,0.40591,2464.2,2464.1,7.60858863]
[1730819446013,40.8,2464.9,2464.1,7.60858863]
[1730819446202,4.22233,2464.8,2464.1,7.60858863]
[1730819446397,0.40591,2464.2,2464.1,7.60858863]
[1730819446909,3.2078,2464.5,2463.8,3.2078]
[1730819447121,4.22245,2464.5,2463.8,3.2078]
[1730819447299,0.40596,2463.9,2463.8,3.2078]
[1730819447698,0.40596,2463.9,2463.8,7.2662]
[1730819448711,1.01469,2464.4,2463.8,7.2662]
[1730819448896,0.40596,2463.9,2463.8,3.2078]
[1730819450006,0.40597,2463.8,2463.7,0.3247]
[1730819450410,4.0584,2463.8,2463.4,7.60858863]
[1730819450604,0.40602,2463.5,2463.4,7.60858863]
[1730819451104,0.40602,2463.5,2463.4,4.40078863]